[Event "7th Sharjah Challengers 2024"]
[Site "Sharjah"]
[Date "2024.05.17"]
[Round "4.1"]
[White "Viani Antonio Dcunha"]
[Black "Sammed Jaykumar, Shete"]
[Result "1-0"]
[ECO "B33"]
[WhiteElo "2394"]
[BlackElo "2383"]
[Annotator "TA"]
[PlyCount "93"]
[EventDate "2024.05.13"]
[EventType "swiss"]
[EventCountry "UAE"]
[SourceTitle "playchess.com"]
[Source "ChessBase"]
[SourceQuality "1"]
[TimeControl "5400+30"]

{[%evp 25,93,31,24,27,28,28,37,35,59,49,122,112,118,75,160,72,91,97,144,156,162,154,157,166,144,12,562,518,441,542,563,547,1514,749,910,888,757,721,1720,1757,1986,1619,29984,29985,29985,29986,29986,29987,29987,29987,29994,29988,29988,29989,29991,29992,29994,29995,29995,29994,29994,29994,29994,29994,29994,29991,29991,29991,29991,1829]} 1. e4 {[%emt 0:00:27]} c5 {[%emt 0:00:10]} 2. Nf3 {[%emt 0:00:16]} Nc6 {[%emt 1:31:20]} 3. d4 {[%emt 0:00:16]} cxd4 {[%emt 0:00:00]} 4. Nxd4 {[%emt 0:00:07]} Nf6 {[%emt 0:00:00]} 5. Nc3 {[%emt 0:00:13]} e5 {[%emt 0:00:00]} 6. Ndb5 {[%emt 0:00:18][%cal Bd4b5,Bb5a3,Ba3c2,Bc2e3][%mdl 32]} d6 {[%emt 0:00:00]} 7. Bg5 {[%emt 0:00:22]} a6 {[%emt 0:00:00]} 8. Na3 {[%emt 0:00:16]} b5 {[%emt 0:00:00]} 9. Nd5 {[%emt 0:00:20]} Be7 {[%emt 0:00:00]} 10. Bxf6 {[%emt 0:00:21]} Bxf6 {[%emt 0:00:00]} 11. c3 {[%emt 0:00:29]} O-O {[%emt 0:00:00]} 12. Nc2 {[%emt 0:06:03]} Rb8 {[%emt 0:00:00]} 13. h4 {[%emt 0:10:34][%cal Bh2h4,Bh4h5][%mdl 32]} g6 {[%emt 0:00:00]} 14. g3 {[%emt 0:00:43]} Bg7 {[%emt 0:00:00]} 15. h5 {[%emt 0:04:52]} Be6 {[%emt 0:00:00]} 16. Nce3 {[%emt 0:11:21] White is slightly better.} Qd7 {[%emt 0:00:00]} 17. a4 {[%emt 0:03:39]} Rfc8 {[%emt 0:00:00]} (17... Bxd5 $14 18. Nxd5 (18. Qxd5 Ne7 $14) 18... Qb7) 18. axb5 {[%emt 0:04:55]} axb5 {[%emt 0:00:00]} 19. Qf3 {[%emt 0:03:58] h6 is the strong threat.} f5 {[%emt 0:00:00]} (19... Qd8 $142) 20. exf5 {[%emt 0:13:10]} (20. Bh3 $142 {Black must now prevent hxg6.} f4 21. gxf4 exf4 22. Nxf4 Bxh3 23. Qxh3 (23. hxg6 hxg6 24. Qxh3 Qxh3 $16) 23... Qxh3 24. Rxh3 (24. Nxh3 b4 $16)) 20... gxf5 $16 {[%emt 0:00:00] [#]} 21. h6 $1 {[%emt 0:01:22]} Bh8 {[%emt 0:00:00]} (21... e4 $142 22. hxg7 exf3 23. Nf6+ Kxg7 24. Nxd7 Bxd7) 22. Bh3 {[%emt 0:11:13] White is much more active.} Rf8 {[%emt 0:00:00]} 23. Ra6 {[%emt 0:01:06][%cal Oa6c6] aiming for Rxc6!} e4 {[%emt 0:00:00]} 24. Qh5 $36 {[%emt 0:00:32][%mdl 2048] White is in control.} Ne5 {[%emt 0:00:00]} 25. Nf4 {[%emt 0:07:20] Excellent horsemanship.} (25. O-O $16) 25... Rf7 $2 {[%emt 0:00:00][%mdl 8192] This move loses the game for Black.} (25... Bf7 $1 $11 26. Qd1 (26. Qxf5 Qb7 $11) 26... b4) 26. Nxe6 $18 {[%emt 0:02:12]} Qxe6 {[%emt 0:00:00]} 27. Bxf5 {[%emt 0:01:21]} Nd3+ {[%emt 0:00:00]} 28. Kf1 {[%emt 0:00:27]} Qe5 {[%emt 0:00:00]} 29. Rh4 {[%emt 0:02:51]} (29. Bxh7+ $142 Kf8 30. Qg6 (30. Bf5 b4 $18) 30... Rxf2+ 31. Kg1 Rf1+ 32. Kxf1 Qf6+ 33. Qxf6+ Bxf6 34. Nd5 (34. Rxd6 Be5 $18) (34. Bxe4 Nxb2 35. Nd5 Nc4 $18)) 29... Nc5 {[%emt 0:00:00]} 30. Rc6 {[%emt 0:02:03]} Kf8 {[%emt 0:00:00]} 31. b4 {[%emt 0:02:40][%cal Bb2b4,Bb4c5][%mdl 32]} Qxc3 {[%emt 0:00:00]} 32. bxc5 {[%emt 0:00:21]} Bd4 {[%emt 0:00:00]} 33. Rxe4 {[%emt 0:00:41] Strongly threatening Kg2.} b4 {[%emt 0:00:00]} 34. Be6 {[%emt 0:03:09][%csl Ge6][%cal Rh5f7] White mates.} Qd3+ {[%emt 0:00:00]} 35. Kg1 {[%emt 0:01:26][%csl Ge6][%cal Rh5f7,Bf1g1,Bg1h2,Bh2g3][%mdl 32]} Qb1+ {[%emt 0:00:00]} 36. Nd1 {[%emt 0:00:54][%csl Ge6][%cal Rh5f7]} Bxf2+ {[%emt 0:00:00]} 37. Kh2 {[%emt 0:00:42][%csl Ge6][%cal Rh5f7]} Rf6 {[%emt 0:00:00]} 38. Rc7 {[%emt 0:02:08]} Bxg3+ {[%emt 0:00:00]} 39. Kxg3 {[%emt 0:00:28]} Rg6+ {[%emt 0:00:00] [#]} 40. Qxg6 $3 {[%emt 0:01:09]} hxg6 {[%emt 0:00:00]} (40... Qd3+ 41. Ne3) 41. h7 {[%emt 0:00:58][%cal Rh7h8]} Qd3+ {[%emt 0:00:00]} 42. Ne3 {[%emt 0:00:45][%cal Rh7h8]} Qc3 {[%emt 0:00:00]} 43. Rf7+ {[%emt 0:00:53]} Ke8 {[%emt 0:00:00]} 44. Bd5+ {[%emt 0:00:13]} Kd8 {[%emt 0:00:00]} 45. Rf8+ {[%emt 0:00:23]} Kd7 {[%emt 0:00:00]} 46. c6+ {[%emt 0:00:12]} Kc7 {[%emt 0:00:00]} 47. Re7+ {[%emt 0:00:06] Weighted Error Value: White=0.10 (very precise) /Black=0.44.  Loses game:     	---       	Black=1      Mistake:       	White=3     	Black=3      Inaccurate:     	White=1     	Black=1      OK:         	White=7     	Black=3      Best:        	White=1     	Black=2      Strong:       	White=1     	---} 1-0

[Event "7th Sharjah Challengers 2024"]
[Site "Sharjah"]
[Date "2024.05.17"]
[Round "4.3"]
[White "Delgado Ramirez, Neuris"]
[Black "Liyanage, Ranindu Dilshan"]
[Result "1/2-1/2"]
[ECO "C26"]
[WhiteElo "2489"]
[BlackElo "2362"]
[Annotator "TA"]
[PlyCount "56"]
[EventDate "2024.05.13"]
[EventType "swiss"]
[EventCountry "UAE"]
[SourceTitle "playchess.com"]
[Source "ChessBase"]
[SourceQuality "1"]
[TimeControl "5400+30"]

{[%evp 9,56,0,0,-17,-5,-14,10,8,12,0,15,8,16,-38,-8,-6,-13,-25,-16,-17,-9,-23,-17,-22,-22,-27,14,18,17,13,26,0,0,-23,-19,-31,-28,-31,-32,-35,-32,-71,0,0,6,17,10,20,19]} 1. e4 {[%emt 0:01:16]} e5 {[%emt 0:00:18]} 2. Nc3 {[%emt 0:00:28]} Nf6 {[%emt 0:00:26]} 3. g3 {[%emt 0:00:50]} Nc6 {[%emt 0:03:00]} 4. Bg2 {[%emt 0:01:11]} Bc5 {[%emt 0:00:24]} 5. d3 {[%emt 0:00:40]} a6 {[%emt 0:00:28]} 6. h3 {[%emt 0:00:47]} d6 {[%emt 0:01:01]} 7. Nge2 {[%emt 0:02:29]} Be6 {[%emt 0:06:41]} 8. Nd5 {[%emt 0:04:47]} h6 {[%emt 0:04:47]} 9. c3 {[%emt 0:07:55]} Ba7 {[%emt 0:08:36]} 10. Be3 {[%emt 0:11:28]} Bxe3 {[%emt 0:15:20]} 11. fxe3 {[%emt 0:00:54]} ({White should play} 11. Nxe3 $11 d5 12. Qb3) 11... Bxd5 {[%emt 0:00:14]} 12. exd5 {[%emt 0:00:05]} Ne7 {[%emt 0:00:08]} 13. Qd2 {[%emt 0:00:06]} c6 {[%emt 0:08:35]} 14. dxc6 {[%emt 0:00:21]} bxc6 {[%emt 0:00:21]} 15. g4 {[%emt 0:04:19]} d5 {[%emt 0:01:50]} 16. Ng3 {[%emt 0:00:05]} Qd6 {[%emt 0:09:45]} 17. e4 {[%emt 0:03:16]} dxe4 {[%emt 0:03:05]} 18. Nxe4 {[%emt 0:00:16]} Nxe4 {[%emt 0:00:06]} 19. Bxe4 {[%emt 0:00:05]} Qe6 {[%emt 0:00:48]} 20. Rg1 {[%emt 0:00:56]} Rd8 {[%emt 0:01:49]} 21. c4 {[%emt 0:04:38]} Ng6 {[%emt 0:04:09]} 22. O-O-O {[%emt 0:01:16]} Nf4 {[%emt 0:00:21][%cal Od8d4]} 23. Qe3 {[%emt 0:00:50]} O-O {[%emt 0:00:50]} 24. Rge1 {[%emt 0:00:55]} Rfe8 {[%emt 0:02:38]} 25. Qf3 {[%emt 0:07:00] [#]} Rd4 {[%emt 0:02:50]} (25... c5 $1 $17) 26. Bxc6 $11 {[%emt 0:05:34] The position is equal.} Nxd3+ {[%emt 0:03:50]} 27. Rxd3 {[%emt 0:00:06]} Rxd3 {[%emt 0:00:07]} 28. Qxd3 {[%emt 0:00:17]} Qxc6 {[%emt 0:00:18] Weighted Error Value: White=0.14 (very precise) /Black=0.11 (very precise) .  Mistake:       	White=1     	Black=1      Inaccurate:     	White=2     	Black=2      OK:         	White=3     	Black=6      Best:        	White=2     	Black=1} 1/2-1/2

[Event "7th Sharjah Challengers 2024"]
[Site "Sharjah"]
[Date "2024.05.17"]
[Round "4.4"]
[White "Anwesh, Upadhyaya"]
[Black "Burmakin, Vladimir"]
[Result "1/2-1/2"]
[ECO "B19"]
[WhiteElo "2345"]
[BlackElo "2483"]
[Annotator "RC"]
[PlyCount "93"]
[EventDate "2024.05.13"]
[EventType "swiss"]
[EventCountry "UAE"]
[SourceTitle "playchess.com"]
[Source "ChessBase"]
[SourceQuality "1"]
[TimeControl "5400+30"]

1. e4 {[%emt 0:04:19]} c6 {[%emt 0:00:09]} 2. d4 {[%emt 0:00:19]} d5 {[%emt 0:00:04]} 3. Nd2 {[%emt 0:00:12]} dxe4 {[%emt 0:05:04]} 4. Nxe4 {[%emt 0:00:08]} Bf5 {[%emt 0:00:48]} 5. Ng3 {[%emt 0:00:10]} Bg6 {[%emt 0:00:02]} 6. h4 {[%emt 0:00:10]} h6 {[%emt 0:00:04]} 7. Nf3 {[%emt 0:00:10]} Nd7 {[%emt 0:00:04]} 8. h5 {[%emt 0:00:13]} Bh7 {[%emt 0:00:04]} 9. Bd3 {[%emt 0:00:12]} Bxd3 {[%emt 0:00:04]} 10. Qxd3 {[%emt 0:00:06]} e6 {[%emt 0:00:03]} 11. Bd2 {[%emt 0:00:14]} Qc7 {[%emt 0:00:06]} 12. O-O-O {[%emt 0:00:08]} O-O-O {[%emt 0:00:10]} 13. Ne4 {[%emt 0:03:56]} Ngf6 {[%emt 0:00:05]} 14. Nxf6 {[%emt 0:00:08]} gxf6 {[%emt 0:03:22]} 15. g3 {[%emt 0:04:52]} f5 {[%emt 0:11:40]} 16. c4 {[%emt 0:03:46]} Nf6 {[%emt 0:04:30]} 17. Qc2 {[%emt 0:06:36]} Ng4 {[%emt 0:03:21]} 18. c5 {[%emt 0:13:08]} Bg7 {[%emt 0:00:49]} 19. Bf4 {[%emt 0:05:43]} Qa5 {[%emt 0:01:19]} 20. Kb1 {[%emt 0:00:29]} Rd5 {[%emt 0:00:22]} 21. Rd3 {[%emt 0:03:22]} a6 {[%emt 0:00:12]} 22. Rhd1 {[%emt 0:07:43]} Qd8 {[%emt 0:09:00]} 23. Qe2 {[%emt 0:04:16]} Re8 {[%emt 0:13:33]} 24. Ne5 {[%emt 0:05:30]} Nxe5 {[%emt 0:02:39]} 25. dxe5 {[%emt 0:00:13]} Qe7 {[%emt 0:11:41]} 26. b4 {[%emt 0:15:21]} f6 {[%emt 0:05:33]} 27. Rxd5 {[%emt 0:02:24]} exd5 {[%emt 0:00:21]} 28. e6 {[%emt 0:00:53]} Qxe6 {[%emt 0:00:10]} 29. Qxe6+ {[%emt 0:00:24]} Rxe6 {[%emt 0:00:06]} 30. f3 {[%emt 0:05:02]} Bf8 {[%emt 0:13:29]} 31. Kc2 {[%emt 0:02:45]} Re2+ {[%emt 0:02:37]} 32. Rd2 {[%emt 0:00:41]} Re1 {[%emt 0:00:11]} 33. Rd1 {[%emt 0:00:20]} Re2+ {[%emt 0:00:28]} 34. Rd2 {[%emt 0:00:06]} Re7 {[%emt 0:00:08]} 35. Kd3 {[%emt 0:02:45]} Kd7 {[%emt 0:01:10]} 36. Re2 {[%emt 0:02:52]} Rh7 {[%emt 0:00:21]} 37. Kd4 {[%emt 0:01:18]} Be7 {[%emt 0:00:07]} 38. a4 {[%emt 0:02:10]} Rh8 {[%emt 0:00:02]} 39. a5 {[%emt 0:02:37]} Rg8 {[%emt 0:03:48]} 40. Ke3 {[%emt 0:01:41]} Bd8 {[%emt 0:02:52]} 41. Kf2 {[%emt 0:00:37]} Rg7 {[%emt 0:00:43]} 42. Re1 {[%emt 0:01:46]} Be7 {[%emt 0:03:07]} 43. Rh1 {[%emt 0:00:23]} Rh7 {[%emt 0:00:06]} 44. Re1 {[%emt 0:00:05]} Rh8 {[%emt 0:00:20]} 45. Re2 {[%emt 0:00:21]} Rh7 {[%emt 0:03:55]} 46. Re1 {[%emt 0:00:06]} Bd8 {[%emt 0:00:48]} 47. Re2 {[%emt 0:00:43]} 1/2-1/2

[Event "7th Sharjah Challengers 2024"]
[Site "Sharjah"]
[Date "2024.05.17"]
[Round "4.5"]
[White "Piliposyan, Robert"]
[Black "Lashkin, Jegor"]
[Result "0-1"]
[ECO "D38"]
[WhiteElo "2367"]
[BlackElo "2449"]
[Annotator "RC"]
[PlyCount "124"]
[EventDate "2024.05.13"]
[EventType "swiss"]
[EventCountry "UAE"]
[SourceTitle "playchess.com"]
[Source "ChessBase"]
[SourceQuality "1"]
[TimeControl "5400+30"]

1. d4 {[%emt 0:00:08]} Nf6 {[%emt 0:00:11]} 2. c4 {[%emt 0:00:04]} e6 {[%emt 0:00:08]} 3. Nf3 {[%emt 0:00:04]} d5 {[%emt 0:00:07]} 4. Nc3 {[%emt 0:00:04]} Bb4 {[%emt 0:00:12]} 5. Qa4+ {[%emt 0:00:12]} Nc6 {[%emt 0:00:08]} 6. e3 {[%emt 0:00:06]} O-O {[%emt 0:00:07]} 7. Qc2 {[%emt 0:00:05]} b6 {[%emt 0:07:03]} 8. Bd2 {[%emt 0:00:32]} Bb7 {[%emt 0:02:09]} 9. cxd5 {[%emt 0:03:51]} exd5 {[%emt 0:00:10]} 10. Bd3 {[%emt 0:01:39]} Bd6 {[%emt 0:01:52]} 11. a3 {[%emt 0:01:43]} a6 {[%emt 0:00:19]} 12. O-O {[%emt 0:01:48]} Ne7 {[%emt 0:00:32]} 13. e4 {[%emt 0:31:25]} dxe4 {[%emt 0:01:55]} 14. Nxe4 {[%emt 0:00:35]} Nxe4 {[%emt 0:04:18]} 15. Bxe4 {[%emt 0:00:17]} Bxe4 {[%emt 0:00:03]} 16. Qxe4 {[%emt 0:00:06]} Qd7 {[%emt 0:03:25]} 17. Rfe1 {[%emt 0:05:39]} Rfe8 {[%emt 0:08:23]} 18. Rad1 {[%emt 0:12:43]} Qf5 {[%emt 0:06:50]} 19. Qxf5 {[%emt 0:04:11]} Nxf5 {[%emt 0:00:06]} 20. Kf1 {[%emt 0:01:14]} f6 {[%emt 0:10:06]} 21. h3 {[%emt 0:04:30]} Red8 {[%emt 0:06:31]} 22. Re4 {[%emt 0:09:36]} Rd7 {[%emt 0:03:51]} 23. Rde1 {[%emt 0:02:17]} Rf8 {[%emt 0:16:30]} 24. Re8 {[%emt 0:07:35]} Kf7 {[%emt 0:01:11]} 25. Rxf8+ {[%emt 0:00:05]} Bxf8 {[%emt 0:00:12]} 26. Rc1 {[%emt 0:01:36]} Ke6 {[%emt 0:09:50]} 27. Bf4 {[%emt 0:02:13]} Bd6 {[%emt 0:01:22]} 28. Bxd6 {[%emt 0:00:04]} Kxd6 {[%emt 0:00:52]} 29. Ke2 {[%emt 0:00:22]} Kd5 {[%emt 0:02:09]} 30. Kd3 {[%emt 0:01:20]} Re7 {[%emt 0:00:45]} 31. g4 {[%emt 0:02:18]} Nd6 {[%emt 0:00:13]} 32. Nd2 {[%emt 0:00:39]} f5 {[%emt 0:08:31]} 33. Nb1 {[%emt 0:01:03]} Ne4 {[%emt 0:00:48]} 34. Rc2 {[%emt 0:02:24]} c5 {[%emt 0:02:29]} 35. dxc5 {[%emt 0:01:37]} Nxc5+ {[%emt 0:00:09]} 36. Kd2 {[%emt 0:00:32]} fxg4 {[%emt 0:03:33]} 37. hxg4 {[%emt 0:02:02]} Ke4 {[%emt 0:00:10]} 38. b4 {[%emt 0:01:39]} Nb3+ {[%emt 0:00:39]} 39. Kc3 {[%emt 0:00:36]} Nd4 {[%emt 0:00:12]} 40. Rd2 {[%emt 0:00:21]} Nb5+ {[%emt 0:01:51]} 41. Kb3 {[%emt 0:00:45]} Kf3 {[%emt 0:00:17]} 42. a4 {[%emt 0:00:09]} Nc7 {[%emt 0:00:02]} 43. Rd4 {[%emt 0:00:37]} Kxf2 {[%emt 0:00:31]} 44. Nd2 {[%emt 0:00:41]} b5 {[%emt 0:00:33]} 45. axb5 {[%emt 0:00:09]} axb5 {[%emt 0:00:21]} 46. g5 {[%emt 0:00:33]} Ke3 {[%emt 0:00:57]} 47. Rd6 {[%emt 0:00:56]} Ne6 {[%emt 0:00:17]} 48. Nb1 {[%emt 0:00:51]} Nxg5 {[%emt 0:00:25]} 49. Nc3 {[%emt 0:00:02]} Rb7 {[%emt 0:01:11]} 50. Rd5 {[%emt 0:00:06]} Nf3 {[%emt 0:00:10]} 51. Nxb5 {[%emt 0:00:28]} g5 {[%emt 0:00:40]} 52. Nd6 {[%emt 0:00:06]} Rb8 {[%emt 0:00:20]} 53. b5 {[%emt 0:00:50]} h5 {[%emt 0:00:25]} 54. Nf7 {[%emt 0:01:06]} Kf4 {[%emt 0:00:14]} 55. Kb4 {[%emt 0:00:35]} h4 {[%emt 0:00:21]} 56. Nxg5 {[%emt 0:00:44]} Nxg5 {[%emt 0:00:07]} 57. Ka5 {[%emt 0:00:01]} h3 {[%emt 0:00:41]} 58. b6 {[%emt 0:00:07]} h2 {[%emt 0:00:21]} 59. Rd1 {[%emt 0:00:03]} Ne4 {[%emt 0:00:21]} 60. Rc1 {[%emt 0:01:28]} Nd6 {[%emt 0:00:16]} 61. Rf1+ {[%emt 0:00:24]} Kg3 {[%emt 0:00:09]} 62. Rc1 {[%emt 0:00:03]} Nc4+ {[%emt 0:01:32]} 0-1

[Event "7th Sharjah Challengers 2024"]
[Site "Sharjah"]
[Date "2024.05.17"]
[Round "4.6"]
[White "Divya Deshmukh"]
[Black "Farahat, Ali"]
[Result "1-0"]
[ECO "C78"]
[WhiteElo "2443"]
[BlackElo "2327"]
[Annotator "TA"]
[PlyCount "97"]
[EventDate "2024.05.13"]
[EventType "swiss"]
[EventCountry "UAE"]
[SourceTitle "playchess.com"]
[Source "ChessBase"]
[SourceQuality "1"]
[TimeControl "5400+30"]

{[%evp 18,97,30,8,6,13,30,35,40,2,3,0,18,3,22,22,39,40,38,34,32,37,39,26,35,18,56,50,45,2,7,11,4,-5,15,0,33,46,36,14,67,55,81,62,74,70,56,46,83,0,155,129,178,190,194,200,205,191,221,198,508,500,469,216,204,193,283,208,218,208,305,278,278,230,475,229,554,504,549,551,607,501]} 1. e4 {[%emt 0:00:21]} e5 {[%emt 0:00:06]} 2. Nf3 {[%emt 0:00:03]} Nc6 {[%emt 0:00:13]} 3. Bb5 {[%emt 0:00:05]} a6 {[%emt 0:00:26]} 4. Ba4 {[%emt 0:00:31]} b5 {[%emt 0:00:43]} 5. Bb3 {[%emt 0:00:13]} Nf6 {[%emt 0:00:19]} 6. O-O {[%emt 0:00:27]} Bc5 {[%emt 0:01:17]} 7. a4 {[%emt 0:00:10]} Rb8 {[%emt 0:00:16]} 8. c3 {[%emt 0:00:23]} d6 {[%emt 0:00:18]} 9. d4 {[%emt 0:00:08]} Bb6 {[%emt 0:00:56]} 10. a5 {[%emt 0:00:08] C78: Ruy Lopez: Archangelsk and Möller Defences.} Ba7 $1 {[%emt 0:00:19]} 11. h3 {[%emt 0:00:07]} h6 {[%emt 0:00:24]} 12. Be3 {[%emt 0:00:30]} Ra8 {[%emt 0:00:22]} 13. Nbd2 {[%emt 0:00:20]} O-O {[%emt 0:00:17]} 14. Re1 {[%emt 0:00:22]} Re8 {[%emt 0:01:08]} 15. Ba2 {[%emt 0:00:12] Recently 15.Bc2 got a lot of attention.} Bb7 {[%emt 0:02:50]} 16. Qb3 {[%emt 0:00:34]} Rf8 $146 {[%emt 0:10:26]} ({Predecessor:} 16... Qd7 17. Bb1 Nd8 18. Qc2 c5 19. d5 c4 20. Bxa7 Rxa7 21. b3 cxb3 22. Qxb3 Bc8 {½-½ Nguyen,T (2618)-Pranav,V (2579) EU-Cup 38th Durres 2023 (5.4)}) 17. Bb1 {[%emt 0:05:58]} exd4 {[%emt 0:02:59]} 18. cxd4 {[%emt 0:00:24]} Re8 {[%emt 0:00:24]} 19. Nf1 {[%emt 0:27:42]} Ne7 $1 {[%emt 0:15:08]} (19... Nxe4 $2 20. d5 Nxa5 (20... Bxe3 $2 21. Rxe3 Nxa5 22. Rxa5 $18) 21. Rxa5 $16) 20. Ng3 {[%emt 0:08:28]} (20. e5 {with more complications.} Nd7 21. e6 Bd5 22. exf7+ Bxf7 23. Bh7+) 20... Ng6 {[%emt 0:03:10]} 21. d5 {[%emt 0:07:04]} c5 {[%emt 0:10:19]} 22. dxc6 {[%emt 0:06:51]} Bxc6 {[%emt 0:00:38]} 23. Bc2 {[%emt 0:01:46]} Bxe3 {[%emt 0:06:13]} 24. Rxe3 {[%emt 0:01:20]} Bb7 {[%emt 0:01:03]} 25. Qb4 {[%emt 0:09:12]} (25. Rd1 {is interesting.} Qc7 26. Rc3 Qxa5 27. Rxd6 Rac8 28. Rxc8 Rxc8 29. Nf5) 25... Rc8 {[%emt 0:02:32]} 26. Bb3 {[%emt 0:01:47]} Rc5 {[%emt 0:00:42]} 27. Rd1 {[%emt 0:02:46]} Qc7 {[%emt 0:03:41]} 28. Qe1 {[%emt 0:02:01]} Ne5 {[%emt 0:03:02]} (28... Nf4 $11) 29. Nxe5 {[%emt 0:03:02]} Rcxe5 {[%emt 0:01:12]} 30. f3 {[%emt 0:02:27]} (30. f4 {keeps more tension.} R5e7 31. Nf5 Rxe4 32. Qg3) 30... Bc8 {[%emt 0:04:54]} 31. Kh1 {[%emt 0:02:51]} Be6 {[%emt 0:02:19]} 32. Bxe6 {[%emt 0:00:51]} R5xe6 {[%emt 0:01:39] [#]} 33. Rc1 {[%emt 0:03:26]} ({Better is} 33. Rc3 $1 $16 {[%cal Rc3c7]} Qxa5 34. Nf5) 33... Qb8 $2 {[%emt 0:02:08] [#]} ({Black should try} 33... Qa7 $1 $11) 34. Nf5 $1 $16 {[%emt 0:00:58]} d5 {[%emt 0:02:38]} (34... Rc8 $16) 35. Nd4 $18 {[%emt 0:00:27]} dxe4 {[%emt 0:00:59]} 36. Nxe6 {[%emt 0:00:12]} Rxe6 {[%emt 0:00:18]} 37. fxe4 {[%emt 0:00:21]} Qe5 {[%emt 0:00:52]} 38. Qc3 {[%emt 0:05:54]} Nxe4 $2 {[%emt 0:02:18]} (38... Qf4 39. Rf3 Qxe4 40. Qc8+ Kh7) 39. Qxe5 $18 {[%emt 0:00:19]} Rxe5 {[%emt 0:00:03]} 40. Rf3 {[%emt 0:03:28]} (40. Kh2 $142) 40... b4 {[%emt 0:20:59]} 41. Rb3 {[%emt 0:03:53]} Kh7 {[%emt 0:00:00]} (41... Rxa5 $142 42. Rxb4 Rc5 43. Rb8+ Kh7 44. Rxc5 Nxc5) 42. Rc7 {[%emt 0:01:01]} (42. Rxb4 Nf2+ 43. Kh2 Nd3 $11 (43... Rxa5 $2 44. Rd4 $18)) 42... Rxa5 {[%emt 0:00:00]} 43. Rxb4 {[%emt 0:00:03]} (43. Rxf7 Ra1+ 44. Kh2 Nd2 $11) 43... Nd2 {[%emt 0:00:00]} (43... Nf2+ $142 44. Kh2 Nd3) 44. Kg1 {[%emt 0:01:34]} (44. Rxf7 Ra1+ 45. Kh2 Nf1+ 46. Kg1 Nd2+ 47. Kh2 Nf1+ 48. Rxf1 Rxf1 $11) 44... Rf5 {[%emt 0:00:00]} 45. Rd7 {[%emt 0:00:43]} Rf1+ {[%emt 0:00:00]} 46. Kh2 {[%emt 0:00:01]} Rd1 $2 {[%emt 0:00:00]} (46... a5 {is a better chance.}) 47. Rbd4 $18 {[%emt 0:00:11]} ({Stronger than} 47. Rxf7 Nf1+ 48. Kg1 Nd2+ 49. Kh2 Nf1+ 50. Kg1 Ne3+ 51. Kf2 Rf1+ 52. Kxe3 Rxf7 $11) 47... Nf1+ {[%emt 0:00:00]} 48. Kg1 {[%emt 0:00:05]} Rb1 {[%emt 0:00:00]} 49. Rd1 {[%emt 0:00:05]} (49. Rxf7 Nd2+ (49... Ne3+ 50. Kf2 $11) 50. Kh2 Nf1+ 51. Rxf1 Rxf1 $11) 1-0

[Event "7th Sharjah Challengers 2024"]
[Site "Sharjah"]
[Date "2024.05.17"]
[Round "4.7"]
[White "Garifullina, Leya"]
[Black "Dhruva Thota"]
[Result "1-0"]
[ECO "B52"]
[WhiteElo "2431"]
[BlackElo "2351"]
[Annotator "ChessBase"]
[PlyCount "105"]
[EventDate "2024.05.13"]
[EventType "swiss"]
[EventCountry "UAE"]
[SourceTitle "playchess.com"]
[Source "ChessBase"]
[SourceQuality "1"]
[TimeControl "5400+30"]

1. e4 {[%emt 0:00:27]} c5 {[%emt 0:00:29]} 2. Nf3 {[%emt 0:00:08]} d6 {[%emt 0:00:09]} 3. Bb5+ {[%emt 0:00:06]} Bd7 {[%emt 0:00:09]} 4. Bxd7+ {[%emt 0:00:07]} Qxd7 {[%emt 0:00:05]} 5. c4 {[%emt 0:00:19]} Nf6 {[%emt 0:00:12]} 6. Nc3 {[%emt 0:00:04]} g6 {[%emt 0:00:11]} 7. d4 {[%emt 0:00:19]} cxd4 {[%emt 0:00:08]} 8. Qxd4 {[%emt 0:00:03]} Bg7 {[%emt 0:03:50]} 9. O-O {[%emt 0:00:53]} O-O {[%emt 0:00:13]} 10. Bd2 {[%emt 0:01:24]} Nc6 {[%emt 0:07:18]} 11. Qd3 {[%emt 0:03:23]} Ng4 {[%emt 0:03:15]} 12. Rac1 {[%emt 0:03:37]} Rac8 {[%emt 0:07:39]} 13. b3 {[%emt 0:01:16]} Rfd8 {[%emt 0:01:10]} 14. Rfd1 {[%emt 0:04:14]} Nge5 {[%emt 0:03:26]} 15. Qe3 {[%emt 0:05:02]} Qg4 {[%emt 0:09:04]} 16. Ne1 {[%emt 0:02:33]} f5 {[%emt 0:04:42]} 17. h3 {[%emt 0:02:31]} Qh5 {[%emt 0:00:43]} 18. Nd5 {[%emt 0:05:02]} fxe4 {[%emt 0:11:53]} 19. g4 {[%emt 0:06:28]} Nxg4 {[%emt 0:02:02]} 20. hxg4 {[%emt 0:00:05]} Qxg4+ {[%emt 0:00:09]} 21. Qg3 {[%emt 0:00:48]} Qd7 {[%emt 0:11:50]} 22. Bc3 {[%emt 0:02:16]} Rf8 {[%emt 0:02:43]} 23. Bxg7 {[%emt 0:03:13]} Kxg7 {[%emt 0:00:04]} 24. Qh4 {[%emt 0:03:03]} Rf5 {[%emt 0:05:22]} 25. Qxe4 {[%emt 0:02:37]} Rcf8 {[%emt 0:00:55]} 26. Rd2 {[%emt 0:07:04]} Rg5+ {[%emt 0:11:14]} 27. Ng2 {[%emt 0:01:12]} Qh3 {[%emt 0:00:47]} 28. Rc3 {[%emt 0:02:03]} Qh6 {[%emt 0:02:56]} 29. f4 {[%emt 0:00:54]} Rh5 {[%emt 0:02:00]} 30. Rg3 {[%emt 0:11:09]} Rh1+ {[%emt 0:03:54]} 31. Kf2 {[%emt 0:00:05]} e5 {[%emt 0:00:40]} 32. Rf3 {[%emt 0:03:25]} Qh2 {[%emt 0:01:47]} 33. Nde3 {[%emt 0:00:50]} Qg1+ {[%emt 0:01:26]} 34. Ke2 {[%emt 0:00:07]} Nd4+ {[%emt 0:00:40]} 35. Rxd4 {[%emt 0:00:08]} exd4 {[%emt 0:00:02]} 36. Qxd4+ {[%emt 0:00:09]} Kg8 {[%emt 0:00:19]} 37. Qd5+ {[%emt 0:01:28]} Kh8 {[%emt 0:00:47]} 38. Rf1 {[%emt 0:00:07]} Qh2 {[%emt 0:00:05]} 39. Rxh1 {[%emt 0:00:05]} Qxh1 {[%emt 0:00:05]} 40. Qxd6 {[%emt 0:00:34]} Rf7 {[%emt 0:00:45]} 41. Qd4+ {[%emt 0:00:19]} Kg8 {[%emt 0:00:12]} 42. Qxa7 {[%emt 0:00:23]} h5 {[%emt 0:01:01]} 43. Qb6 {[%emt 0:00:54]} Kg7 {[%emt 0:01:05]} 44. Qd4+ {[%emt 0:00:06]} Kh7 {[%emt 0:00:23]} 45. Qd5 {[%emt 0:01:21]} Re7 {[%emt 0:02:19]} 46. Qg5 {[%emt 0:02:02]} Rg7 {[%emt 0:00:53]} 47. f5 {[%emt 0:00:07]} gxf5 {[%emt 0:00:35]} 48. Qxf5+ {[%emt 0:00:04]} Kh6 {[%emt 0:00:24]} 49. Nf4 {[%emt 0:00:41]} Rg1 {[%emt 0:00:48]} 50. Qe5 {[%emt 0:02:24]} Qh2+ {[%emt 0:01:01]} 51. Kd3 {[%emt 0:00:06]} Rg3 {[%emt 0:00:42]} 52. Qh8+ {[%emt 0:01:04]} Kg5 {[%emt 0:00:02]} 53. Ne6+ {[%emt 0:00:13]} 1-0